fUSD/lending_fUSD_20260607
["ID","MTS","AMOUNT","RATE_DAILY","PERIOD"]
[424330289,1780768349000,-899.957594,0.00037808,30]
[424330291,1780768349000,-151.0,0.00037808,30]
[424330243,1780768349000,-2186.410048,0.00037808,30]
[424330294,1780768349000,-238.360582,0.00037808,30]
[424330287,1780768349000,-238.360582,0.00037808,30]
[424330296,1780768349000,-899.957594,0.00037808,30]
[424330295,1780768349000,-316.691752,0.00037808,30]
[424330283,1780768349000,-420.797775,0.00037808,30]
[424330268,1780768349000,-2186.410048,0.00037808,30]
[424330288,1780768349000,-429.657593,0.00037808,30]
[424330267,1780768349000,-248.330867,0.00037808,30]
[424330262,1780768349000,-151.0,0.00037808,30]
[424330245,1780768349000,-316.691752,0.00037808,30]
[424330238,1780768349000,-248.330867,0.00037808,30]
[424330237,1780768349000,-316.691752,0.00037808,30]
[424330235,1780768349000,-2186.410048,0.00037808,30]
[424330239,1780768349000,-2186.410048,0.00037808,30]
[424330240,1780768349000,-429.657591,0.00037808,30]
[424330241,1780768349000,-316.691752,0.00037808,30]
[424330242,1780768349000,-248.330867,0.00037808,30]
[424330246,1780768349000,-248.330867,0.00037808,30]
[424330250,1780768349000,-238.360582,0.00037808,30]
[424330249,1780768349000,-429.657591,0.00037808,30]
[424330248,1780768349000,-151.0,0.00037808,30]
[424330253,1780768349000,-248.330867,0.00037808,30]
[424330233,1780768349000,-316.691752,0.00037808,30]
[424330251,1780768349000,-316.691752,0.00037808,30]
[424330255,1780768349000,-151.0,0.00037808,30]
[424330261,1780768349000,-2186.410048,0.00037808,30]
[424330260,1780768349000,-248.330867,0.00037808,30]
[424330258,1780768349000,-238.360582,0.00037808,30]
[424330269,1780768349000,-151.0,0.00037808,30]
[424330264,1780768349000,-238.360582,0.00037808,30]
[424330256,1780768349000,-429.657591,0.00037808,30]
[424330257,1780768349000,-316.691752,0.00037808,30]
[424330259,1780768349000,-899.957594,0.00037808,30]
[424330254,1780768349000,-2186.410048,0.00037808,30]
[424330263,1780768349000,-429.657591,0.00037808,30]
[424330252,1780768349000,-899.957594,0.00037808,30]
[424330247,1780768349000,-2186.410048,0.00037808,30]
[424330330,1780768350000,-238.360582,0.00037808,30]
[424330325,1780768350000,-238.360582,0.00037808,30]
[424330326,1780768350000,-899.957594,0.00037808,30]
[424330334,1780768350000,-2186.410044,0.00037808,30]
[424330332,1780768350000,-420.797775,0.00037808,30]
[424330329,1780768350000,-2186.410048,0.00037808,30]
[424330331,1780768350000,-899.957597,0.00037808,30]
[424330335,1780768350000,-238.360582,0.00037808,30]
[424330327,1780768350000,-420.797775,0.00037808,30]
[424330319,1780768350000,-435.822462,0.00037808,30]
[424330328,1780768350000,-435.822462,0.00037808,30]
[424330345,1780768350000,-228.4,0.00037839,80]
[424330337,1780768350000,-435.822462,0.00037808,30]
[424330344,1780768350000,-5000.0,0.00037823,7]
[424330338,1780768350000,-1358.0,0.00037809,2]
[424330340,1780768350000,-382.0,0.00037809,2]
[424330343,1780768350000,-759.0,0.00037816,13]
[424330347,1780768350000,-5000.0,0.00037851,30]
[424330346,1780768350000,-150.0,0.00037844,120]
[424330336,1780768350000,-420.797775,0.00037808,30]
[424330339,1780768350000,-3554.0,0.00037809,2]
[424330320,1780768350000,-2186.410048,0.00037808,30]
[424330333,1780768350000,-435.822462,0.00037808,30]
[424330321,1780768350000,-238.360582,0.00037808,30]
[424330308,1780768350000,-248.330867,0.00037808,30]
[424330317,1780768350000,-899.957594,0.00037808,30]
[424330342,1780768350000,-6073.0,0.00037809,2]
[424330306,1780768350000,-435.822462,0.00037808,30]
[424330298,1780768350000,-435.822462,0.00037808,30]
[424330297,1780768350000,-420.797775,0.00037808,30]
[424330304,1780768350000,-899.957594,0.00037808,30]
[424330305,1780768350000,-420.797775,0.00037808,30]
[424330299,1780768350000,-151.0,0.00037808,30]
[424330301,1780768350000,-2186.410048,0.00037808,30]
[424330302,1780768350000,-238.360582,0.00037808,30]
[424330303,1780768350000,-316.691752,0.00037808,30]
[424330300,1780768350000,-248.330867,0.00037808,30]
[424330310,1780768350000,-238.360582,0.00037808,30]
[424330312,1780768350000,-899.957594,0.00037808,30]
[424330311,1780768350000,-316.691753,0.00037808,30]
[424330309,1780768350000,-2186.410048,0.00037808,30]
[424330307,1780768350000,-151.0,0.00037808,30]
[424330313,1780768350000,-420.797775,0.00037808,30]
[424330315,1780768350000,-2186.410048,0.00037808,30]
[424330314,1780768350000,-241.826334,0.00037808,30]
[424330324,1780768350000,-435.822462,0.00037808,30]
[424330318,1780768350000,-420.797775,0.00037808,30]
[424330323,1780768350000,-420.797775,0.00037808,30]
[424330316,1780768350000,-238.360582,0.00037808,30]
[424330322,1780768350000,-899.957594,0.00037808,30]
[424330341,1780768350000,-933.0,0.00037809,2]
[424330373,1780768350000,-282.05,0.00037975,120]
[424330350,1780768350000,-5000.0,0.00037875,7]
[424330375,1780768350000,-783.98,0.00037975,120]
[424330380,1780768350000,-708.13,0.00037975,120]
[424330383,1780768350000,-574.39,0.00037975,120]
[424330386,1780768350000,-1175.68,0.00037975,120]
[424330382,1780768350000,-539.79,0.00037975,120]
[424330376,1780768350000,-268.1,0.00037975,120]
[424330385,1780768350000,-2000.0,0.00037975,120]
[424330378,1780768350000,-966.25,0.00037975,120]
[424330381,1780768350000,-378.58,0.00037975,120]
[424330379,1780768350000,-1309.77,0.00037975,120]
[424330374,1780768350000,-1131.89,0.00037975,120]
[424330387,1780768350000,-1474.69,0.00037975,120]
[424330391,1780768350000,-164.25,0.00037975,120]
[424330390,1780768350000,-223.92,0.00037975,120]
[424330393,1780768350000,-244.89,0.00037975,120]
[424330392,1780768350000,-2000.0,0.00037975,120]
[424330397,1780768350000,-25000.0,0.00038,31]
[424330395,1780768350000,-6616.83204747,0.0003799,6]
[424330394,1780768350000,-5000.0,0.00037986,7]
[424330398,1780768350000,-7137.97,0.00038,120]
[424330396,1780768350000,-5508.0,0.00038,2]
[424330359,1780768350000,-263.78010567,0.000379,30]
[424330389,1780768350000,-276.89,0.00037975,120]
[424330377,1780768350000,-419.19,0.00037975,120]
[424330388,1780768350000,-922.88,0.00037975,120]
[424330399,1780768350000,-10000.44046997,0.00038,30]
[424330384,1780768350000,-181.28,0.00037975,120]
[424330352,1780768350000,-150.0,0.00037885,120]
[424330348,1780768350000,-25635.0,0.00037857,4]
[424330349,1780768350000,-228.4,0.00037869,100]
[424330353,1780768350000,-151.44098084,0.00037889,7]
[424330354,1780768350000,-868370.00991345,0.0003789,2]
[424330357,1780768350000,-5000.0,0.000379,120]
[424330358,1780768350000,-4967.0,0.000379,30]
[424330355,1780768350000,-1743.7,0.000379,120]
[424330356,1780768350000,-228.4,0.000379,120]
[424330372,1780768350000,-151.0,0.00037972,2]
[424330351,1780768350000,-206.1928284,0.0003788,2]
[424330366,1780768350000,-1774.31695712,0.0003794,30]
[424330362,1780768350000,-150.0,0.00037927,120]
[424330361,1780768350000,-5000.0,0.00037904,7]
[424330365,1780768350000,-150.0,0.0003794,30]
[424330364,1780768350000,-3091.90524953,0.0003794,30]
[424330371,1780768350000,-151.5,0.00037972,2]
[424330363,1780768350000,-150.0,0.0003794,30]
[424330370,1780768350000,-158.13681208,0.00037969,2]
[424330368,1780768350000,-25863.0,0.00037966,6]
[424330367,1780768350000,-42850.00450359,0.00037957,2]
[424330360,1780768350000,-203114.3,0.000379,31]
[424330369,1780768350000,-150.0,0.00037968,120]
[424330438,1780768351000,-312.5,0.00038,2]
[424330440,1780768351000,-800.0,0.00038,2]
[424330427,1780768351000,-150.0,0.00038,3]
[424330441,1780768351000,-250000.0,0.00038,30]
[424330449,1780768351000,-506.0,0.00038,120]
[424330439,1780768351000,-2000.0,0.00038,2]
[424330432,1780768351000,-5000.0,0.00038,15]
[424330437,1780768351000,-344.17826066,0.00038,10]
[424330435,1780768351000,-5000.0,0.00038,120]
[424330431,1780768351000,-500.0,0.00038,120]
[424330446,1780768351000,-10000.0,0.00038,7]
[424330433,1780768351000,-60086.3858783,0.00038,5]
[424330442,1780768351000,-1000.0,0.00038,120]
[424330455,1780768351000,-222.93259004,0.00038,7]
[424330447,1780768351000,-10000.0,0.00038,7]
[424330444,1780768351000,-1948.2421875,0.00038,2]
[424330448,1780768351000,-40051.46287481,0.00038,30]
[424330443,1780768351000,-20164.21,0.00038,30]
[424330451,1780768351000,-2588.0,0.00038,120]
[424330462,1780768351000,-1096.0,0.00038018,14]
[424330461,1780768351000,-150.0,0.00038009,120]
[424330452,1780768351000,-2764.0,0.00038,60]
[424330463,1780768351000,-234680.0,0.00038039,60]
[424330458,1780768351000,-850.0,0.00038,2]
[424330457,1780768351000,-261.0,0.00038,30]
[424330459,1780768351000,-151.0,0.00038,120]
[424330430,1780768351000,-21036.0,0.00038,90]
[424330445,1780768351000,-10110.813,0.00038,7]
[424330434,1780768351000,-1009.0,0.00038,30]
[424330409,1780768351000,-325.73390499,0.00038,60]
[424330428,1780768351000,-252.46646522,0.00038,5]
[424330400,1780768351000,-410684.85006539,0.00038,7]
[424330411,1780768351000,-4263.31422849,0.00038,30]
[424330412,1780768351000,-2532.0,0.00038,120]
[424330410,1780768351000,-319.79867156,0.00038,60]
[424330453,1780768351000,-151.0,0.00038,60]
[424330403,1780768351000,-167.2,0.00038,60]
[424330401,1780768351000,-191005.61494029,0.00038,120]
[424330404,1780768351000,-21693.37209563,0.00038,120]
[424330405,1780768351000,-3456.52339861,0.00038,5]
[424330402,1780768351000,-6225.0,0.00038,7]
[424330408,1780768351000,-470000.0,0.00038,30]
[424330406,1780768351000,-1000.0,0.00038,120]
[424330407,1780768351000,-20000.0,0.00038,120]
[424330429,1780768351000,-3000.0,0.00038,2]
[424330415,1780768351000,-788.72,0.00038,30]
[424330420,1780768351000,-1016.3812962,0.00038,120]
[424330418,1780768351000,-684.81445312,0.00038,2]
[424330416,1780768351000,-45344.60238384,0.00038,10]
[424330425,1780768351000,-1000.0,0.00038,120]
[424330417,1780768351000,-26317.72896677,0.00038,20]
[424330414,1780768351000,-718.0,0.00038,2]
[424330419,1780768351000,-1351.31579358,0.00038,15]
[424330423,1780768351000,-600000.0,0.00038,120]
[424330421,1780768351000,-151.0,0.00038,120]
[424330422,1780768351000,-1690.55,0.00038,38]
[424330424,1780768351000,-10100.0,0.00038,90]
[424330436,1780768351000,-10008.76827805,0.00038,120]
[424330426,1780768351000,-1000.0,0.00038,120]
[424330413,1780768351000,-684.81445313,0.00038,2]
[424330454,1780768351000,-210.0,0.00038,30]
[424330450,1780768351000,-90000.0,0.00038,30]
[424330460,1780768351000,-1086.0,0.00038,7]
[424330500,1780768351000,-339.258572,0.000381,7]
[424330497,1780768351000,-339.258572,0.000381,7]
[424330498,1780768351000,-345.258572,0.000381,7]
[424330491,1780768351000,-1840.3017215,0.000381,2]
[424330499,1780768351000,-342.258572,0.000381,7]
[424330502,1780768351000,-342.258572,0.000381,7]
[424330503,1780768351000,-339.258572,0.000381,7]
[424330506,1780768351000,-341.637885,0.000381,7]
[424330512,1780768351000,-341.637885,0.000381,7]
[424330504,1780768351000,-345.258572,0.000381,7]
[424330508,1780768351000,-344.637885,0.000381,7]
[424330501,1780768351000,-345.258572,0.000381,7]
[424330505,1780768351000,-380.637896,0.000381,7]
[424330494,1780768351000,-339.258572,0.000381,7]
[424330511,1780768351000,-344.637885,0.000381,7]
[424330510,1780768351000,-338.637885,0.000381,7]
[424330513,1780768351000,-338.637885,0.000381,7]
[424330516,1780768351000,-338.637885,0.000381,7]
[424330514,1780768351000,-344.637885,0.000381,7]
[424330521,1780768351000,-500.0,0.00038114,49]
[424330515,1780768351000,-341.637885,0.000381,7]
[424330523,1780768351000,-4117.24935264,0.00038119,2]
[424330517,1780768351000,-5713.28457079,0.00038108,30]
[424330522,1780768351000,-4699.37829007,0.00038119,2]
[424330519,1780768351000,-339.94668816,0.00038114,49]
[424330520,1780768351000,-200.0,0.00038114,49]
[424330456,1780768351000,-167.54996769,0.00038,120]
[424330518,1780768351000,-6012.39337324,0.0003811,30]
[424330509,1780768351000,-341.637885,0.000381,7]
[424330496,1780768351000,-342.258572,0.000381,7]
[424330507,1780768351000,-338.637885,0.000381,7]
[424330493,1780768351000,-342.258572,0.000381,7]
[424330465,1780768351000,-2796.18884141,0.00038052,2]
[424330464,1780768351000,-150.0,0.0003805,120]
[424330495,1780768351000,-345.258572,0.000381,7]
[424330466,1780768351000,-5000.0,0.00038067,2]
[424330467,1780768351000,-5000.0,0.00038067,7]
[424330469,1780768351000,-1000.0,0.00038082,120]
[424330473,1780768351000,-223.74,0.0003809,93]
[424330468,1780768351000,-3550.84803335,0.0003808,2]
[424330475,1780768351000,-5000.0,0.00038092,7]
[424330470,1780768351000,-1562.0,0.00038082,30]
[424330472,1780768351000,-40843.89315909,0.00038085,120]
[424330474,1780768351000,-150.0,0.00038091,120]
[424330477,1780768351000,-8275.21,0.00038095,7]
[424330487,1780768351000,-811.9428694,0.000381,33]
[424330471,1780768351000,-2000.0,0.00038082,120]
[424330479,1780768351000,-200.0,0.00038099,30]
[424330476,1780768351000,-9508.66,0.00038095,2]
[424330484,1780768351000,-500.0,0.00038099,30]
[424330481,1780768351000,-200.0,0.00038099,38]
[424330482,1780768351000,-339.94668819,0.00038099,33]
[424330480,1780768351000,-339.94668816,0.00038099,38]
[424330483,1780768351000,-200.0,0.00038099,33]
[424330490,1780768351000,-265.56413491,0.000381,33]
[424330485,1780768351000,-500.0,0.00038099,38]
[424330486,1780768351000,-500.0,0.00038099,33]
[424330488,1780768351000,-1735.6048,0.000381,120]
[424330478,1780768351000,-339.94668816,0.00038099,30]
[424330489,1780768351000,-2000.0,0.000381,48]
[424330492,1780768351000,-381.258577,0.000381,7]
[424330568,1780768352000,-234680.0,0.00038202,60]
[424330565,1780768352000,-339.94668816,0.00038201,30]
[424330562,1780768352000,-1098.93627381,0.000382,120]
[424330572,1780768352000,-320.0,0.00038213,49]
[424330576,1780768352000,-5000.0,0.0003823,7]
[424330566,1780768352000,-200.0,0.00038201,30]
[424330563,1780768352000,-1183.73298945,0.000382,120]
[424330564,1780768352000,-561.870226,0.000382,20]
[424330553,1780768352000,-339.94668816,0.00038199,48]
[424330559,1780768352000,-5000.0,0.000382,2]
[424330558,1780768352000,-2000.0,0.000382,52]
[424330575,1780768352000,-5000.0,0.00038218,7]
[424330567,1780768352000,-500.0,0.00038201,30]
[424330573,1780768352000,-150.0,0.00038215,120]
[424330588,1780768352000,-33685.16,0.00038276,60]
[424330577,1780768352000,-339.94668816,0.00038231,30]
[424330556,1780768352000,-300.0,0.000382,30]
[424330585,1780768352000,-152.2,0.0003825,13]
[424330583,1780768352000,-468.0,0.00038248,3]
[424330578,1780768352000,-200.0,0.00038231,30]
[424330580,1780768352000,-5000.0,0.00038233,30]
[424330584,1780768352000,-152.19,0.0003825,13]
[424330569,1780768352000,-8240.0,0.00038208,60]
[424330582,1780768352000,-158.13681208,0.00038243,2]
[424330591,1780768352000,-150.0,0.00038297,120]
[424330589,1780768352000,-5000.0,0.00038288,7]
[424330579,1780768352000,-500.0,0.00038231,30]
[424330571,1780768352000,-410.8733142,0.00038212,120]
[424330570,1780768352000,-62558.0,0.00038208,60]
[424330574,1780768352000,-5000.0,0.00038218,2]
[424330590,1780768352000,-300.0,0.00038293,2]
[424330551,1780768352000,-250.0,0.00038174,2]
[424330536,1780768352000,-1514.36722447,0.00038123,2]
[424330557,1780768352000,-1000000.0,0.000382,30]
[424330586,1780768352000,-5000.0,0.00038253,7]
[424330524,1780768352000,-1571.24551386,0.00038119,2]
[424330525,1780768352000,-4379.93441001,0.00038119,2]
[424330537,1780768352000,-1468.88027307,0.00038123,2]
[424330528,1780768352000,-1745.7575992,0.00038119,2]
[424330529,1780768352000,-1859.06903235,0.00038119,2]
[424330527,1780768352000,-2523.57296315,0.00038119,2]
[424330526,1780768352000,-3747.33416149,0.00038119,2]
[424330535,1780768352000,-1472.57107152,0.00038119,2]
[424330530,1780768352000,-2621.76767689,0.00038119,2]
[424330531,1780768352000,-1517.62588166,0.00038119,2]
[424330533,1780768352000,-1818.94585681,0.00038119,2]
[424330534,1780768352000,-1579.62023104,0.00038119,2]
[424330532,1780768352000,-2292.59519467,0.00038119,2]
[424330555,1780768352000,-500.0,0.00038199,48]
[424330550,1780768352000,-250.0,0.00038174,2]
[424330539,1780768352000,-1057.04,0.00038128,5]
[424330538,1780768352000,-4581.8,0.00038125,30]
[424330540,1780768352000,-193.03,0.0003813,120]
[424330541,1780768352000,-636.1,0.0003813,120]
[424330542,1780768352000,-150.0,0.00038132,120]
[424330543,1780768352000,-2742.44,0.00038135,7]
[424330548,1780768352000,-5000.0,0.00038174,2]
[424330546,1780768352000,-150.0,0.00038174,120]
[424330544,1780768352000,-320.0,0.00038144,49]
[424330545,1780768352000,-5000.0,0.00038149,7]
[424330561,1780768352000,-1200.1055665,0.000382,120]
[424330560,1780768352000,-1093.4156204,0.000382,120]
[424330554,1780768352000,-200.0,0.00038199,48]
[424330552,1780768352000,-250.0,0.00038174,2]
[424330549,1780768352000,-5000.0,0.00038174,2]
[424330587,1780768352000,-150.0,0.00038256,120]
[424330547,1780768352000,-5000.0,0.00038174,2]
[424330592,1780768352000,-339.94668816,0.00038299,52]
[424330629,1780768352000,-1955.11747599,0.00038306,2]
[424330621,1780768352000,-338.637885,0.000383,30]
[424330632,1780768352000,-500.0,0.00038306,30]
[424330630,1780768352000,-339.94668816,0.00038306,30]
[424330631,1780768352000,-200.0,0.00038306,30]
[424330634,1780768352000,-5000.0,0.00038323,7]
[424330644,1780768352000,-2000.0,0.00038335,120]
[424330645,1780768352000,-254.65,0.00038335,120]
[424330646,1780768352000,-188.69,0.00038335,120]
[424330633,1780768352000,-5000.0,0.00038312,7]
[424330635,1780768352000,-218.87508031,0.00038329,120]
[424330642,1780768352000,-396.6,0.00038335,120]
[424330637,1780768352000,-2000.0,0.00038335,120]
[424330639,1780768352000,-989.16,0.00038335,120]
[424330628,1780768352000,-1459.37791281,0.00038306,2]
[424330636,1780768352000,-1502.2,0.00038335,120]
[424330640,1780768352000,-972.29,0.00038335,120]
[424330638,1780768352000,-1001.75,0.00038335,120]
[424330648,1780768352000,-162.21,0.00038335,120]
[424330651,1780768352000,-339.94668816,0.00038341,30]
[424330650,1780768352000,-150.0,0.00038338,120]
[424330647,1780768352000,-335.01,0.00038335,120]
[424330649,1780768352000,-485.89,0.00038335,120]
[424330655,1780768352000,-759.0,0.0003835,14]
[424330653,1780768352000,-500.0,0.00038341,30]
[424330654,1780768352000,-4599.165998,0.0003835,120]
[424330652,1780768352000,-200.0,0.00038341,30]
[424330656,1780768352000,-1100.0,0.00038355,60]
[424330657,1780768352000,-339.94668816,0.00038355,30]
[424330581,1780768352000,-43000.0,0.00038236,15]
[424330643,1780768352000,-2000.0,0.00038335,120]
[424330624,1780768352000,-182.879812,0.000383,20]
[424330641,1780768352000,-329.93,0.00038335,120]
[424330627,1780768352000,-1478.35666675,0.00038306,2]
[424330607,1780768352000,-342.258572,0.000383,30]
[424330605,1780768352000,-339.258572,0.000383,30]
[424330604,1780768352000,-342.258572,0.000383,30]
[424330598,1780768352000,-342.258572,0.000383,30]
[424330603,1780768352000,-345.258572,0.000383,30]
[424330600,1780768352000,-345.258572,0.000383,30]
[424330616,1780768352000,-344.637885,0.000383,30]
[424330602,1780768352000,-339.258572,0.000383,30]
[424330599,1780768352000,-339.258572,0.000383,30]
[424330597,1780768352000,-381.258577,0.000383,30]
[424330596,1780768352000,-5000.0,0.000383,2]
[424330594,1780768352000,-500.0,0.00038299,52]
[424330593,1780768352000,-200.0,0.00038299,52]
[424330626,1780768352000,-150.0,0.00038303,120]
[424330601,1780768352000,-342.258572,0.000383,30]
[424330617,1780768352000,-341.637885,0.000383,30]
[424330595,1780768352000,-4000.0,0.000383,54]
[424330625,1780768352000,-150.0,0.00038303,120]
[424330619,1780768352000,-344.637885,0.000383,30]
[424330622,1780768352000,-1106.86,0.000383,120]
[424330623,1780768352000,-1000000.0,0.000383,30]
[424330620,1780768352000,-341.637885,0.000383,30]
[424330611,1780768352000,-341.637885,0.000383,30]
[424330606,1780768352000,-345.258572,0.000383,30]
[424330615,1780768352000,-338.637885,0.000383,30]
[424330614,1780768352000,-341.637885,0.000383,30]
[424330608,1780768352000,-339.258572,0.000383,30]
[424330613,1780768352000,-344.637885,0.000383,30]
[424330610,1780768352000,-380.637896,0.000383,30]
[424330609,1780768352000,-345.258572,0.000383,30]
[424330618,1780768352000,-338.637885,0.000383,30]
[424330612,1780768352000,-338.637885,0.000383,30]
[424330686,1780768353000,-156.15270631,0.00038356,120]
[424330676,1780768353000,-334.18271126,0.00038356,2]
[424330685,1780768353000,-677.89,0.00038356,30]
[424330677,1780768353000,-501.2740669,0.00038356,2]
[424330678,1780768353000,-668.36542253,0.00038356,2]
[424330679,1780768353000,-1575.66,0.00038356,30]
[424330688,1780768353000,-5000.0,0.00038358,7]
[424330680,1780768353000,-1342.77,0.00038356,30]
[424330681,1780768353000,-664.74,0.00038356,30]
[424330683,1780768353000,-759.22,0.00038356,30]
[424330682,1780768353000,-793.67,0.00038356,30]
[424330687,1780768353000,-300.0,0.00038357,2]
[424330674,1780768353000,-2000.0,0.00038356,120]
[424330684,1780768353000,-1016.06,0.00038356,30]
[424330675,1780768353000,-167.09135563,0.00038356,2]
[424330665,1780768353000,-192.86,0.00038356,2]
[424330667,1780768353000,-1562.0,0.00038356,30]
[424330671,1780768353000,-600.0,0.00038356,120]
[424330668,1780768353000,-1000.0,0.00038356,120]
[424330670,1780768353000,-600.0,0.00038356,120]
[424330661,1780768353000,-500.0,0.00038355,30]
[424330673,1780768353000,-557.0,0.00038356,120]
[424330663,1780768353000,-172.0,0.00038356,120]
[424330664,1780768353000,-400.0017512,0.00038356,30]
[424330666,1780768353000,-1500.0,0.00038356,120]
[424330672,1780768353000,-550.0,0.00038356,120]
[424330662,1780768353000,-1694.61,0.00038356,2]
[424330660,1780768353000,-1000.0,0.00038355,30]
[424330659,1780768353000,-200.0,0.00038355,30]
[424330658,1780768353000,-250.0,0.00038355,30]
[424330669,1780768353000,-1000.0,0.00038356,120]
[424330690,1780768353000,-234680.0,0.00038364,120]
[424330689,1780768353000,-350.0,0.00038363,50]
[424330715,1780768353000,-500.0,0.0003837,50]
[424330709,1780768353000,-201.93286098,0.0003837,50]
[424330708,1780768353000,-500.0,0.0003837,50]
[424330714,1780768353000,-695.39793187,0.0003837,50]
[424330717,1780768353000,-194.72792766,0.00038372,33]
[424330691,1780768353000,-201.93286098,0.0003837,50]
[424330716,1780768353000,-151.0,0.0003837,50]
[424330712,1780768353000,-152.0,0.0003837,50]
[424330713,1780768353000,-500.0,0.0003837,50]
[424330718,1780768353000,-644.79446245,0.00038372,33]
[424330722,1780768353000,-500.0,0.00038372,33]
[424330720,1780768353000,-151.0,0.00038372,33]
[424330721,1780768353000,-644.79446245,0.00038372,33]
[424330735,1780768353000,-151.0,0.00038372,33]
[424330734,1780768353000,-500.0,0.00038372,33]
[424330719,1780768353000,-386.87667747,0.00038372,33]
[424330711,1780768353000,-6017.8667181,0.0003837,50]
[424330707,1780768353000,-151.0,0.0003837,50]
[424330705,1780768353000,-151.0,0.0003837,50]
[424330697,1780768353000,-201.93286098,0.0003837,50]
[424330693,1780768353000,-433.65574272,0.0003837,50]
[424330696,1780768353000,-190.91243573,0.0003837,50]
[424330694,1780768353000,-151.0,0.0003837,50]
[424330692,1780768353000,-668.65185756,0.0003837,50]
[424330706,1780768353000,-201.93286098,0.0003837,50]
[424330698,1780768353000,-339.94668816,0.0003837,50]
[424330695,1780768353000,-668.65185756,0.0003837,50]
[424330700,1780768353000,-250.0,0.0003837,50]
[424330702,1780768353000,-200.0,0.0003837,50]
[424330701,1780768353000,-9211.34798984,0.0003837,50]
[424330704,1780768353000,-1000.0,0.0003837,50]
[424330703,1780768353000,-200.0,0.0003837,50]
[424330710,1780768353000,-151.0,0.0003837,50]
[424330699,1780768353000,-160.0,0.0003837,50]
[424330846,1780768354000,-1007.81,0.000385,120]
[424330835,1780768354000,-1019.2194593,0.000385,120]
[424330832,1780768354000,-174.36190454,0.000385,120]
[424330827,1780768354000,-164.794047,0.00038486,24]
[424330828,1780768354000,-26338.96132581,0.000385,2]
[424330831,1780768354000,-1537.1859,0.000385,120]
[424330858,1780768354000,-3090.635,0.00038538,52]
[424330830,1780768354000,-2375.3,0.000385,30]
[424330833,1780768354000,-2000.0,0.000385,2]
[424330826,1780768354000,-150.0,0.00038462,120]
[424330821,1780768354000,-5000.0,0.0003843,7]
[424330825,1780768354000,-5000.0,0.0003846,120]
[424330824,1780768354000,-150.0,0.00038457,120]
[424330829,1780768354000,-585.8051947,0.000385,5]
[424330845,1780768354000,-2414.94,0.000385,120]
[424330848,1780768354000,-152.77,0.000385,120]
[424330838,1780768354000,-100000.0,0.000385,15]
[424330823,1780768354000,-320.0,0.00038446,51]
[424330860,1780768354000,-156.861,0.00038547,52]
[424330857,1780768354000,-424444.2318,0.00038535,7]
[424330859,1780768354000,-150.0,0.00038544,120]
[424330849,1780768354000,-341.73,0.000385,90]
[424330843,1780768354000,-12821.0,0.000385,120]
[424330836,1780768354000,-400.0,0.000385,2]
[424330844,1780768354000,-433.13473827,0.000385,120]
[424330841,1780768354000,-30000.0,0.000385,120]
[424330840,1780768354000,-111484.67084536,0.000385,30]
[424330834,1780768354000,-4713.0,0.000385,120]
[424330837,1780768354000,-100000.0,0.000385,11]
[424330847,1780768354000,-2327.61,0.000385,120]
[424330842,1780768354000,-100000.0,0.000385,7]
[424330839,1780768354000,-90049.52312242,0.000385,30]